bitfinex-derivatives/quotes_SOLF0:USTF0_20250206
["timestamp","ask_amount","ask_price","bid_price","bid_amount"]
[1738880137882,0.03967202,191.85,191.84,34.43842821]
[1738880138088,3.3541,191.95,191.84,34.43842821]
[1738880138278,0.03631437,191.86,191.84,34.43842821]
[1738880138483,1.7252,191.95,191.84,34.43842821]
[1738880138684,0.0374654,191.87,191.84,34.43842821]
[1738880138987,20.9552,191.95,191.84,34.43842821]
[1738880139179,20.9552,191.95,191.84,34.47578629]
[1738880139381,0.03676577,191.87,191.84,34.47578629]
[1738880139582,20.9552,191.95,191.84,34.47578629]
[1738880139583,5.2102,191.92,191.84,0.03735808]
[1738880139783,0.03492986,191.87,191.84,0.03735808]
[1738880140191,19.23,191.95,191.9,5.2106]
[1738880140388,19.23,191.95,191.9,39.64902821]
[1738880140583,9.9,191.95,191.9,34.43842821]
[1738880141383,1.5148,192.04,191.94,34.43842821]
[1738880141883,1.5148,192.04,191.96,5.2091]
[1738880141884,0.03880513,192.01,191.96,5.2091]
[1738880142085,0.03880513,192.01,191.97,0.03756406]
[1738880143696,0.03880513,192.01,191.87,34.43842821]
[1738880143986,34.43842821,192.0,191.83,34.43842821]
[1738880144191,5.2104,191.92,191.83,34.43842821]
[1738880144386,34.43842821,192.0,191.79,34.43842821]
[1738880144387,34.43842821,191.96,191.79,34.43842821]
[1738880144586,34.43842821,192.0,191.79,34.43842821]
[1738880145086,0.03735071,191.89,191.86,0.03336958]
[1738880145484,5.2104,191.92,191.83,5.2126]
[1738880145687,34.43842821,192.0,191.79,34.43842821]
[1738880145886,0.034635,191.89,191.86,0.03437309]
[1738880146296,5.2107,191.9,191.81,5.2129]
[1738880146594,0.03726162,191.89,191.86,0.03638007]
[1738880147497,0.03726162,191.89,191.87,34.43842821]
[1738880147890,1.6005,191.94,191.87,34.43842821]
[1738880147891,9.32,192.04,191.87,34.43842821]
[1738880148092,3.3476,192.03,191.91,34.43842821]
[1738880148591,3.3476,192.03,191.88,34.43842821]
[1738880148891,5.2098,191.94,191.86,5.2117]
[1738880149091,35.99072821,192.02,191.94,0.03510623]
[1738880149292,0.04000042,191.97,191.94,0.03510623]
[1738880149493,0.04000042,191.97,191.84,34.43842821]
[1738880149789,35.99072821,192.02,191.94,0.0345929]
[1738880149990,35.99072821,192.02,191.88,5.2112]
[1738880150192,0.03800522,191.92,191.84,34.43842821]
[1738880150386,5.2088,191.98,191.93,0.03441215]
[1738880150690,35.99072821,192.02,191.8,34.43842821]
[1738880150892,5.2097,191.94,191.86,5.2117]
[1738880151087,5.2097,191.94,191.8,34.43842821]
[1738880151293,5.2097,191.94,191.84,34.43842821]
[1738880151692,5.2097,191.94,191.66,388.6517]
[1738880151693,34.43842821,191.98,191.8,34.43842821]
[1738880151894,0.03616801,191.91,191.87,0.03655988]
[1738880152894,0.03616801,191.91,191.78,34.43842821]
[1738880153100,34.47459622,191.91,191.74,34.43842821]
[1738880153289,5.2112,191.89,191.8,5.2132]
[1738880153588,1.5425,191.92,191.78,34.43842821]
[1738880153990,5.212,191.86,191.78,39.65222821]
[1738880154194,0.03375588,191.87,191.83,0.03637453]
[1738880155000,0.03375588,191.87,191.84,5.2121]
[1738880155397,0.03375588,191.87,191.83,0.03637453]
[1738880155598,5.2118,191.86,191.83,0.03637453]
[1738880155798,0.03375588,191.87,191.83,0.03637453]
[1738880155997,0.03375588,191.87,191.83,5.24897453]
[1738880156398,0.03375588,191.87,191.83,0.03637453]
[1738880157302,5.2119,191.86,191.83,0.03637453]
[1738880157604,0.03375588,191.87,191.74,34.43842821]
[1738880157996,34.43842821,191.88,191.7,137.69842821]
[1738880158202,5.2127,191.83,191.77,5.2142]
[1738880158400,5.2127,191.83,191.74,34.43842821]
[1738880158604,37.64052821,191.92,191.74,34.43842821]
[1738880158804,5.2129,191.83,191.76,5.2144]
[1738880159005,0.03433346,191.8,191.77,0.03697724]
[1738880159403,1.6013,191.82,191.7,34.43842821]
[1738880159601,0.03342498,191.8,191.77,0.0360638]
[1738880160002,1.6013,191.82,191.74,34.43842821]
[1738880160211,0.03552091,191.8,191.77,0.03829332]
[1738880160415,5.214,191.78,191.77,0.03829332]
[1738880160614,0.03552091,191.8,191.77,0.03829332]
[1738880161214,0.03552091,191.8,191.7,34.43842821]
[1738880161713,0.03552091,191.8,191.74,34.43842821]
[1738880161910,1.6013,191.82,191.74,34.43842821]
[1738880162308,0.03780927,191.8,191.78,34.43842821]
[1738880162616,5.2118,191.87,191.79,5.2136]
[1738880162813,0.03601266,191.81,191.78,21.12183274]
[1738880163213,21.34163422,191.87,191.78,21.16110144]
[1738880163514,0.03709412,191.81,191.78,21.16110144]
[1738880163706,21.34163422,191.87,191.78,21.16110144]
[1738880163911,56.07984267,191.89,191.83,21.12183274]
[1738880164108,56.07984267,191.89,191.87,11.18183274]
[1738880164415,56.07984267,191.89,191.83,21.12183274]
[1738880164613,56.07984267,191.89,191.74,198.52]
[1738880164614,5.2114,191.88,191.79,21.12183274]
[1738880164813,78.76527541,191.96,191.79,21.12183274]
[1738880165014,0.03624522,191.83,191.8,0.03744726]
[1738880165212,0.03624522,191.83,191.79,21.12183274]
[1738880165417,70.13344267,191.96,191.79,21.12183274]
[1738880165717,0.0390018,191.83,191.79,0.03530537]
[1738880166017,1.6282,191.92,191.75,21.12183274]
[1738880166318,0.03613762,191.83,191.79,21.15530881]
[1738880166615,3.3176,191.92,191.86,5.2116]
[1738880166815,1.6894,191.92,191.85,21.12183274]
[1738880167010,70.13344267,191.96,191.85,21.12183274]
[1738880167714,70.13344267,191.96,191.89,21.16172432]
[1738880167715,0.03403852,191.92,191.89,21.16172432]
[1738880167915,12.49,191.96,191.92,5.21]
[1738880168111,56.07984267,192.0,191.89,0.03989158]
[1738880169313,0.03885369,191.96,191.89,0.03989158]
[1738880171814,0.03885369,191.96,191.91,21.12183274]
[1738880172220,0.03885369,191.96,191.95,5.2094]
[1738880172416,10.4,192.0,191.95,21.12183274]
[1738880172617,10.4,192.0,191.99,21.12183274]
[1738880172817,9.32,192.04,191.99,21.12183274]
[1738880173013,9.32,192.04,191.95,21.12183274]
[1738880173320,9.32,192.04,191.92,1.4237]
[1738880173511,9.32,192.04,191.98,0.03304647]
[1738880173715,0.03424981,192.01,191.99,5.208]
[1738880173912,0.03424981,192.01,191.98,0.03304647]
[1738880174716,0.03424981,192.01,191.87,21.12183274]
[1738880174919,21.12183274,192.07,191.87,21.12183274]
[1738880175314,21.12183274,192.07,191.91,21.12183274]
[1738880175519,5.2072,192.03,191.91,21.12183274]
[1738880175721,15.16,192.08,191.91,21.12183274]
[1738880175922,0.03663383,191.99,191.95,0.03808628]
[1738880176127,9.32,192.03,191.91,21.12183274]
[1738880176418,0.04007767,191.99,191.98,5.2086]
[1738880176723,9.32,192.03,191.98,21.12183274]
[1738880177222,9.32,192.03,191.99,5.2082]
[1738880177422,9.32,192.03,191.98,21.12183274]
[1738880177921,0.03590307,192.02,192.01,5.2075]
[1738880178519,9.32,192.03,191.99,0.03340522]
[1738880178723,15.16,192.08,192.02,21.12183274]
[1738880179023,15.16,192.08,191.99,21.12183274]
[1738880179423,20.3659,192.08,192.0,5.208]
[1738880179624,15.16,192.08,191.96,21.12183274]
[1738880179824,0.03867172,192.05,192.02,0.03756662]
[1738880180026,5.2072,192.03,191.95,5.2093]
[1738880181119,5.2072,192.03,191.97,0.03471618]
[1738880181325,0.03592206,192.01,191.97,0.03471618]
[1738880182120,0.03592206,192.01,191.85,21.12183274]
[1738880182426,1.5874,192.01,191.85,21.12183274]
[1738880182626,5.2108,191.9,191.82,5.2128]
[1738880182926,34.31571621,191.93,191.76,158.80452646]
[1738880183225,0.03427332,191.88,191.84,0.03662647]
[1738880185424,0.03427332,191.88,191.64,193.0]
[1738880185727,34.31571621,191.89,191.66,5.3]
[1738880186126,5.213,191.82,191.74,5.2149]
[1738880186527,0.03909543,191.8,191.76,0.03745915]
[1738880186820,34.31571621,191.88,191.67,34.31571621]
[1738880187030,0.03607699,191.8,191.76,0.03424592]
[1738880187222,1.6427,191.83,191.71,34.31571621]
[1738880187523,0.03916861,191.8,191.76,0.03562908]
[1738880187719,0.03916861,191.8,191.79,5.2137]
[1738880188031,2.0437,191.87,191.79,34.31571621]
[1738880188326,1.6427,191.89,191.84,5.2122]
[1738880188527,1.6427,191.89,191.79,34.31571621]
[1738880188831,5.2097,191.94,191.85,5.212]
[1738880189126,1.6427,191.95,191.83,34.31571621]
[1738880189330,0.03410048,191.91,191.88,5.2113]
[1738880189623,56.07984267,191.99,191.87,34.31571621]
[1738880189927,56.07984267,191.99,191.92,34.31571621]
[1738880190426,0.0362573,191.97,191.95,5.2093]
[1738880190824,0.0362573,191.97,191.96,34.31571621]
[1738880191526,0.0362573,191.97,191.94,0.03649189]
[1738880194427,0.0362573,191.97,191.96,5.2091]
[1738880195031,0.0362573,191.97,191.94,5.24589189]
[1738880195332,0.0362573,191.97,191.94,0.03649189]
[1738880195832,0.0362573,191.97,191.96,5.2091]
[1738880196023,0.0362573,191.97,191.94,0.03649189]
[1738880196623,0.0362573,191.97,191.96,5.2091]
[1738880197030,5.73e-05,191.97,191.96,5.2091]
[1738880197232,5.73e-05,191.97,191.96,39.52481621]
[1738880201540,3.6341,192.11,191.96,34.31571621]
[1738880201834,3.6341,192.11,192.01,34.31571621]
[1738880202236,16.2606,192.1,192.01,34.31571621]
[1738880202536,16.2606,192.1,191.97,34.31571621]
[1738880202836,0.03851737,192.07,192.04,0.03804674]
[1738880203439,0.03851737,192.07,191.89,34.31571621]
[1738880203641,34.31571621,192.09,191.89,34.31571621]
[1738880203933,34.31571621,192.05,191.89,34.31571621]
[1738880204138,34.31571621,192.05,191.85,34.31571621]
[1738880204338,5.2091,191.97,191.88,5.2112]
[1738880204638,2.2287,191.96,191.93,0.03606425]
[1738880204832,3.8802,191.96,191.82,145.56206253]
[1738880205030,3.8802,191.96,191.82,42.42206253]
[1738880205229,3.8802,191.96,191.82,21.30881025]
[1738880205430,3.8802,191.96,191.82,42.42206253]
[1738880205630,5.2096,191.94,191.85,5.2121]
[1738880205837,3.8802,191.96,191.82,42.42206253]
[1738880206038,0.03431572,191.91,191.88,0.0374193]
[1738880206431,0.03431572,191.91,191.82,21.30881025]
[1738880206737,0.03431572,191.91,191.82,55.61529653]
[1738880206942,0.03431572,191.91,191.82,21.30881025]
[1738880207438,5.24501572,191.91,191.82,5.2129]
[1738880207639,0.03431572,191.91,191.85,0.03340984]
[1738880207839,0.03431572,191.91,191.78,34.30648628]
[1738880208040,38.18668628,191.96,191.78,34.30648628]
[1738880208636,5.2115,191.88,191.8,5.2134]
[1738880208838,36.53518628,191.96,191.78,34.30648628]
[1738880209137,0.03994683,191.86,191.82,0.03962302]
[1738880209438,34.30648628,191.92,191.74,34.30648628]
[1738880209643,34.30648628,191.92,191.79,5.2137]
[1738880209644,5.2118,191.86,191.79,5.2137]
[1738880209843,2.0981,191.85,191.74,34.30648628]
[1738880210243,5.2124,191.84,191.77,5.214]
[1738880210442,0.03381242,191.81,191.78,0.0393698]
[1738880211744,0.03381242,191.81,191.78,34.34585608]
[1738880212547,0.03381242,191.81,191.79,5.2137]
[1738880212742,5.2109,191.9,191.8,34.30648628]
[1738880212948,56.07984267,192.02,191.88,34.30648628]
[1738880213148,5.4153,192.0,191.88,34.30648628]
[1738880213347,5.4153,192.0,191.84,34.30648628]
[1738880213743,34.30648628,191.97,191.8,34.30648628]
[1738880213941,0.03341542,191.94,191.9,0.03313901]
[1738880214248,0.03341542,191.94,191.8,34.30648628]
[1738880214448,34.30648628,191.97,191.8,34.30648628]
[1738880215246,0.03393725,191.9,191.87,0.03311167]
[1738880215451,20.0753,192.0,191.87,0.03311167]
[1738880215754,0.03764217,191.9,191.84,34.30648628]
[1738880215952,20.0753,192.0,191.92,0.03648259]
[1738880216252,0.04005781,191.98,191.94,0.03853404]
[1738880216448,20.0753,192.0,191.94,0.03853404]
[1738880216652,0.036581,191.98,191.94,0.03853404]
[1738880217449,0.036581,191.98,191.95,5.2094]
[1738880217751,0.036581,191.98,191.94,0.03853404]
[1738880218051,0.036581,191.98,191.94,5.24793404]
[1738880219053,0.036581,191.98,191.94,0.03853404]
[1738880220055,0.036581,191.98,191.94,5.24793404]
[1738880220349,0.036581,191.98,191.96,34.30648628]
[1738880220554,0.036581,191.98,191.97,5.2088]
[1738880220754,13.31,192.03,191.96,34.30648628]
[1738880220955,13.31,192.03,192.01,34.30648628]
[1738880221351,2.119,192.09,192.01,34.30648628]
[1738880221751,2.119,192.09,192.04,5.2069]
[1738880221948,0.03919893,192.07,192.03,0.03808823]
[1738880222448,0.03919893,192.07,192.04,34.30648628]
[1738880223058,0.03919893,192.07,192.05,5.2067]
[1738880223258,0.03919893,192.07,192.04,34.30648628]
[1738880223559,15.04,192.1,192.09,5.2056]
[1738880223858,2.119,192.15,192.09,39.51208628]
[1738880224159,5.2029,192.19,192.1,5.2052]
[1738880224357,3.1104,192.2,192.06,34.30648628]
[1738880224658,0.03875332,192.15,192.11,0.04005412]
[1738880224858,0.03875332,192.15,192.06,34.30648628]
[1738880225258,0.03875332,192.15,192.06,39.51288628]
[1738880225259,5.24285332,192.15,192.06,39.51288628]
[1738880225558,0.03875332,192.15,192.02,34.30648628]
[1738880225752,5.2048,192.13,192.04,5.2069]
[1738880225954,2.0843,192.16,192.02,34.30648628]
[1738880226158,0.03959473,192.11,192.07,0.03788167]
[1738880226958,0.03959473,192.11,191.98,21.06915835]
[1738880227156,2.0843,192.16,191.98,21.06915835]
[1738880227357,21.06915835,192.13,191.98,21.06915835]
[1738880227653,21.06915835,192.13,191.94,21.06915835]
[1738880228054,0.03745857,192.05,192.02,0.0348863]
[1738880228251,21.06915835,192.13,191.94,21.06915835]
[1738880228455,0.03749075,192.05,191.94,21.06915835]
[1738880229660,0.03749075,192.05,191.98,0.03458332]
[1738880229861,21.1066491,192.05,191.86,21.06915835]
[1738880230063,2.1739,192.04,191.9,21.06915835]
[1738880230362,5.208,192.0,191.95,5.2093]
[1738880230661,2.1739,192.04,191.95,5.2093]
[1738880230964,0.03682059,192.01,191.95,5.2093]
[1738880231757,0.03682059,192.01,191.97,5.2088]
[1738880231965,0.03682059,192.01,191.96,34.27597059]
[1738880232158,2.059e-05,192.01,192.0,34.27597059]
[1738880232359,2.1763,192.12,192.0,34.27597059]
[1738880232759,2.1763,192.12,192.04,34.27597059]
[1738880233361,68.28984267,192.17,192.04,34.27597059]
[1738880233664,68.28984267,192.17,192.06,0.03660312]
[1738880233665,0.03305943,192.1,192.06,0.03660312]
[1738880234062,0.03305943,192.1,192.0,34.27597059]
[1738880234364,34.27597059,192.13,191.96,34.27597059]
[1738880234566,34.27597059,192.13,191.96,39.48487059]
[1738880234761,12.41125245,192.16,192.0,34.27597059]
[1738880235061,14.06165245,192.16,192.0,34.27597059]
[1738880235261,14.06165245,192.16,192.04,34.27597059]
[1738880235466,0.03617301,192.1,192.08,5.2056]
[1738880235767,0.03459203,192.12,192.08,5.2056]
[1738880235968,0.03459203,192.12,192.08,34.27597059]
[1738880236167,11.96459203,192.12,192.08,34.27597059]
[1738880236564,5.2053,192.1,192.04,34.27597059]
[1738880236766,5.2053,192.1,191.93,193.1779]
[1738880236767,11.96459203,192.12,192.0,34.27597059]
[1738880236966,11.93,192.12,192.0,34.27597059]
[1738880237266,0.03448733,192.08,192.0,34.27597059]
[1738880237664,5.207,192.04,191.96,39.48507059]
[1738880237867,3.7168,192.07,191.96,34.27597059]
[1738880238368,0.03935145,192.03,191.98,5.2085]
[1738880238870,0.03935145,192.03,191.96,34.27597059]
[1738880239058,0.03935145,192.03,191.92,34.27597059]
[1738880239269,5.2084,191.99,191.89,5.211]
[1738880239470,0.03935145,192.03,191.89,5.211]
[1738880239666,1.5136,192.06,191.89,5.211]
[1738880239871,1.5136,192.06,191.88,34.27597059]
[1738880239872,0.04005704,191.98,191.88,34.27597059]
[1738880241772,0.04005704,191.98,191.84,34.27597059]
[1738880242172,34.27597059,192.01,191.84,34.27597059]
[1738880242370,0.0365057,191.93,191.84,34.27597059]
[1738880242571,5.2105,191.91,191.84,34.27597059]
[1738880243472,5.2105,191.91,191.83,5.2126]
[1738880243672,0.0365057,191.93,191.8,34.45297059]
[1738880243869,39.85597059,191.97,191.8,34.27597059]
[1738880244178,0.03502525,191.88,191.8,34.27597059]
[1738880244374,0.03502525,191.88,191.84,34.27597059]
[1738880244771,3.9541,191.96,191.84,34.27597059]
[1738880244979,0.03716572,191.88,191.84,34.27597059]
[1738880245174,1.5234,191.95,191.84,34.27597059]
[1738880245376,9.56,191.88,191.8,34.27597059]
[1738880245573,9.5946506,191.88,191.8,34.27597059]
[1738880246977,9.5946506,191.88,191.82,5.2128]
[1738880247175,9.5946506,191.88,191.76,34.27597059]
[1738880247374,5.2129,191.83,191.75,5.2146]
[1738880247676,9.56,191.88,191.71,0.5418]
[1738880247876,0.03827089,191.81,191.74,5.215]
[1738880248178,0.03827089,191.81,191.71,0.5418]
[1738880248574,5.25147089,191.81,191.72,5.2154]
[1738880248883,0.03827089,191.81,191.71,0.5418]
[1738880249176,0.03827089,191.81,191.79,34.27597059]
[1738880249368,0.00477089,191.81,191.79,34.27597059]
[1738880249968,9.56,191.88,191.79,34.27597059]
[1738880251279,0.03639572,191.85,191.82,0.03550661]
[1738880253176,5.24849572,191.85,191.82,0.03550661]
[1738880253879,0.03639572,191.85,191.7,34.27597059]
[1738880254083,2.1525,191.84,191.7,34.27597059]
[1738880254284,5.2135,191.8,191.7,34.27597059]
[1738880254584,2.1525,191.84,191.7,34.27597059]
[1738880255086,0.03323671,191.79,191.66,34.27597059]
[1738880255382,5.215,191.75,191.68,5.2166]
[1738880255683,0.03866584,191.74,191.66,34.27597059]
[1738880256073,11.42,191.75,191.7,34.27597059]
[1738880256277,0.03380413,191.72,191.7,34.27597059]
[1738880257680,0.03380413,191.72,191.66,34.27597059]
[1738880257881,0.03380413,191.72,191.68,5.2167]
[1738880258077,11.42,191.75,191.66,34.27597059]
[1738880258279,0.03700624,191.72,191.66,34.27597059]
[1738880258581,0.03700624,191.72,191.67,21.1466533]
[1738880258982,11.42,191.75,191.67,26.3633533]
[1738880259285,0.03885739,191.71,191.56,21.1466533]
[1738880259481,5.2175,191.66,191.58,5.2192]
[1738880259679,5.2175,191.66,191.54,21.1466533]
[1738880259880,0.04004495,191.64,191.54,21.1466533]
[1738880260688,0.04004495,191.64,191.55,34.40425869]
[1738880260989,5.2175,191.66,191.55,34.40425869]
[1738880261179,0.03374414,191.61,191.55,34.40425869]
[1738880262277,0.03374414,191.61,191.59,34.40425869]
[1738880262482,4.414e-05,191.61,191.59,34.40425869]
[1738880262984,4.414e-05,191.61,191.56,34.40425869]
[1738880263684,4.414e-05,191.61,191.57,0.03463921]
[1738880265779,14.30004414,191.61,191.57,0.03463921]
[1738880267485,14.30004414,191.61,191.57,5.25433921]
[1738880269182,14.30004414,191.61,191.57,0.03463921]
[1738880269686,19.51864414,191.61,191.57,0.03463921]
[1738880269982,14.30004414,191.61,191.57,0.03463921]
[1738880270782,5.2189,191.6,191.57,0.03463921]
[1738880271186,14.30004414,191.61,191.57,0.03463921]
[1738880271580,14.30004414,191.61,191.49,5.2218]
[1738880271581,3.9518,191.6,191.49,5.2218]
[1738880271780,5.2213,191.52,191.42,34.40425869]
[1738880272086,5.2213,191.52,191.46,5.2225]
[1738880272280,5.2202,191.56,191.42,34.40425869]
[1738880272481,34.40425869,191.59,191.42,34.40425869]
[1738880272687,0.03771689,191.51,191.49,5.2219]
[1738880273084,5.2205,191.55,191.49,5.2219]
[1738880273287,0.03695658,191.52,191.47,5.2224]
[1738880273788,0.03695658,191.52,191.42,34.40425869]
[1738880273988,0.03695658,191.52,191.38,34.40425869]
[1738880274287,34.40425869,191.55,191.38,34.40425869]
[1738880274484,0.03713435,191.47,191.38,34.40425869]
[1738880275379,0.03713435,191.47,191.42,34.40425869]
[1738880275788,0.03713435,191.47,191.45,5.2229]
[1738880275989,0.03713435,191.47,191.42,34.40425869]
[1738880276379,0.03713435,191.47,191.38,34.40425869]
[1738880277083,14.47713435,191.47,191.38,34.40425869]
[1738880278887,14.47713435,191.47,191.46,5.2227]
[1738880279391,13.84823435,191.47,191.46,5.2227]
[1738880279587,5.2195,191.58,191.46,34.40425869]
[1738880280392,5.2195,191.58,191.5,5.2214]
[1738880280589,0.03793218,191.54,191.5,0.03528693]
[1738880280892,0.03793218,191.54,191.53,5.2208]
[1738880281494,0.03793218,191.54,191.5,34.43954562]
[1738880281898,3.218e-05,191.54,191.5,34.43954562]
[1738880282093,9.1265,191.68,191.55,5.2201]
[1738880282395,3.9098,191.68,191.55,34.40425869]
[1738880282696,5.217,191.67,191.55,21.17216337]
[1738880282896,3.9098,191.68,191.55,21.17216337]
[1738880283097,5.2173,191.66,191.56,5.2197]
[1738880283390,0.03499845,191.63,191.6,0.03741243]
[1738880284196,0.03499845,191.63,191.41,198.12]
[1738880284402,21.17216337,191.64,191.47,21.17216337]
[1738880285494,0.03794266,191.57,191.54,0.03801931]
[1738880285699,21.17216337,191.6,191.54,0.03801931]
[1738880285910,5.25463324,191.57,191.48,5.2222]
[1738880286204,5.25463324,191.57,191.55,0.0375196]
[1738880286400,5.25463324,191.57,191.48,5.2222]
[1738880286601,5.25463324,191.57,191.54,0.03585163]
[1738880287703,5.22,191.56,191.54,0.03585163]
[1738880288104,0.03463324,191.57,191.54,0.03585163]
[1738880289602,5.2202,191.56,191.54,0.03585163]
[1738880289906,0.03463324,191.57,191.38,21.17216337]
[1738880290107,21.17216337,191.54,191.34,21.17216337]
[1738880290405,21.17216337,191.54,191.26,214.29444755]
[1738880290406,21.17216337,191.5,191.3,21.17216337]
[1738880290604,5.2235,191.44,191.35,5.2257]
[1738880290797,5.2235,191.44,191.3,21.17216337]
[1738880291104,0.03499249,191.41,191.3,21.17216337]
[1738880291803,0.03499249,191.41,191.34,21.17216337]
[1738880292001,5.2222,191.48,191.34,21.17216337]
[1738880292203,0.034784,191.39,191.34,21.17216337]
[1738880292403,5.2222,191.48,191.39,5.2245]
[1738880292604,2.219e-05,191.38,191.37,34.46714723]
[1738880293105,2.219e-05,191.38,191.37,39.69234723]
[1738880294707,11.33,191.44,191.43,5.2235]
[1738880294906,1.5474,191.54,191.41,34.46714723]
[1738880295104,5.2208,191.53,191.41,34.46714723]
[1738880295400,1.5474,191.54,191.41,34.46714723]
[1738880295604,6.7679,191.54,191.41,34.46714723]
[1738880295802,1.5474,191.54,191.41,34.46714723]
[1738880295998,1.5474,191.54,191.47,5.2223]
[1738880295999,0.03410777,191.49,191.47,5.2223]
[1738880296200,0.03410777,191.49,191.46,0.0388459]
[1738880296804,0.03410777,191.49,191.33,34.46714723]
[1738880297006,34.46714723,191.48,191.31,0.0774]
[1738880297903,0.03790857,191.41,191.31,0.0774]
[1738880298108,0.03790857,191.41,191.33,34.46714723]
[1738880299405,0.03790857,191.41,191.39,5.2244]
[1738880300709,0.03790857,191.41,191.4,5.2243]
[1738880300901,1.5474,191.54,191.37,34.46714723]
[1738880301106,1.5474,191.54,191.45,34.46714723]
[1738880301303,1.5474,191.54,191.48,5.2219]
[1738880301505,2.2602,191.55,191.48,5.2219]
[1738880301704,22.95972464,191.59,191.45,34.46714723]
[1738880301909,22.95972464,191.59,191.51,5.2211]
[1738880302105,0.03975345,191.53,191.51,5.2211]
[1738880302299,22.95972464,191.59,191.5,0.03340445]
[1738880302300,22.95972464,191.59,191.52,5.2211]
[1738880302601,0.03487868,191.53,191.5,0.03340445]
[1738880302804,21.42902464,191.59,191.5,0.03340445]
[1738880303107,0.03681568,191.53,191.5,0.03340445]
[1738880303299,148.0783642,191.63,191.5,0.03340445]
[1738880303300,21.42902464,191.65,191.5,0.03340445]
[1738880303504,21.42902464,191.65,191.53,34.46714723]
[1738880303909,34.46714723,191.64,191.49,34.46714723]
[1738880304211,34.46714723,191.64,191.45,34.46714723]
[1738880304503,0.03594503,191.58,191.41,34.46714723]
[1738880304710,34.46714723,191.6,191.41,34.46714723]
[1738880305010,5.2211,191.52,191.41,34.46714723]
[1738880305215,34.46714723,191.6,191.41,34.46714723]
[1738880305607,34.46714723,191.6,191.45,34.46714723]
[1738880305807,0.03880411,191.52,191.49,0.03829412]
[1738880306003,34.46714723,191.64,191.45,34.46714723]
[1738880306303,0.03612514,191.5,191.47,0.03343469]
[1738880306505,5.2192,191.59,191.5,5.2215]
[1738880307013,0.03321756,191.56,191.53,0.03660285]
[1738880307214,5.25331756,191.56,191.53,0.03660285]
[1738880307813,0.03321756,191.56,191.53,0.03660285]
[1738880308006,0.03321756,191.56,191.54,5.2204]
[1738880308206,0.03321756,191.56,191.53,0.03660285]
[1738880308410,0.03321756,191.56,191.55,5.2203]
[1738880309009,4.1449,191.66,191.61,5.2186]
[1738880309312,4.1449,191.66,191.55,34.46714723]
[1738880309710,4.1449,191.66,191.6,5.2189]
[1738880310209,0.03984438,191.65,191.61,0.0377178]
[1738880310607,0.03984438,191.65,191.63,5.218]
[1738880310908,0.03984438,191.65,191.61,0.0377178]
[1738880311106,0.03984438,191.65,191.63,5.2179]
[1738880311711,0.03984438,191.65,191.61,0.0377178]
[1738880312508,0.03984438,191.65,191.64,5.2178]
[1738880313015,57.14406571,191.76,191.63,34.46714723]
[1738880313317,3.9447,191.79,191.63,34.46714723]
[1738880313512,34.46714723,191.76,191.6,34.46714723]
[1738880314219,0.03533132,191.7,191.66,0.03838575]
[1738880315922,0.03533132,191.7,191.53,0.4051]
[1738880316114,5.2173,191.66,191.53,0.4051]
[1738880316418,1.7036,191.69,191.53,0.4051]
[1738880316913,5.2176,191.65,191.56,5.2198]
[1738880317118,0.03577052,191.63,191.59,0.03666098]
[1738880317821,0.03577052,191.63,191.47,34.91044723]
[1738880318119,34.46714723,191.64,191.47,34.46714723]
[1738880318319,5.2198,191.57,191.49,5.2219]
[1738880318515,34.46714723,191.6,191.43,34.91044723]
[1738880318819,3.5091,191.59,191.4,21.29444755]
[1738880319119,0.03421681,191.53,191.5,0.03687547]
[1738880319313,0.03421681,191.53,191.4,21.29444755]
[1738880319817,34.46714723,191.52,191.4,21.29444755]
[1738880320015,5.2233,191.44,191.4,21.29444755]
[1738880320614,5.26095772,191.44,191.4,21.29444755]
[1738880320915,5.26095772,191.44,191.32,0.2158]
[1738880321109,0.03765772,191.44,191.32,0.2158]
[1738880321620,0.03765772,191.44,191.35,5.2255]
[1738880321812,0.03765772,191.44,191.32,0.2158]
[1738880322021,0.03765772,191.44,191.34,34.46714723]
[1738880322214,0.03765772,191.44,191.42,34.46714723]
[1738880323322,0.03765772,191.44,191.43,5.2235]
[1738880326118,0.03765772,191.44,191.38,34.46714723]
[1738880327524,0.03765772,191.44,191.34,34.46714723]
[1738880327723,0.03765772,191.44,191.38,34.46714723]
[1738880327927,0.03765772,191.44,191.4,5.2241]
[1738880328633,0.03765772,191.44,191.38,34.46714723]
[1738880329525,0.03765772,191.44,191.38,39.69184723]
[1738880330732,0.03765772,191.44,191.39,5.2246]
[1738880331830,0.03765772,191.44,191.34,34.46714723]
[1738880332031,0.03765772,191.44,191.3,34.46714723]